lending/lending_fUSD_20250316
["ID","MTS","AMOUNT","RATE_DAILY","PERIOD"]
[356238687,1742122248189,-500.0,0.00046575,120]
[356238688,1742122248200,-500.0,0.00046575,120]
[356238689,1742122248210,-500.0,0.00046575,120]
[356238690,1742122248220,-500.0,0.00046575,120]
[356238691,1742122248229,-500.0,0.00046575,120]
[356238692,1742122248241,-500.0,0.00046575,120]
[356238693,1742122248250,-500.0,0.00046575,120]
[356238694,1742122248261,-500.0,0.00046575,120]
[356238695,1742122248270,-500.0,0.00046575,120]
[356238696,1742122248280,-500.0,0.00046575,120]
[356238697,1742122248291,-500.0,0.00046575,120]
[356238698,1742122248301,-500.0,0.00046575,120]
[356238699,1742122248312,-500.0,0.00046575,120]
[356238700,1742122248322,-500.0,0.00046575,120]
[356238701,1742122248331,-500.0,0.00046575,120]
[356238702,1742122248341,-500.0,0.00046575,120]
[356238703,1742122248351,-500.0,0.00046575,120]
[356238704,1742122248361,-500.0,0.00046575,120]
[356238705,1742122248371,-500.0,0.00046575,120]
[356238706,1742122248381,-500.0,0.00046575,120]
[356238707,1742122248391,-500.0,0.00046575,120]
[356238708,1742122248401,-500.0,0.00046575,120]
[356238709,1742122248411,-500.0,0.00046575,120]
[356238710,1742122248420,-500.0,0.00046575,120]
[356238711,1742122248429,-500.0,0.00046575,120]
[356238712,1742122248439,-449.29891944,0.00046575,120]
[356238713,1742122248449,-500.0,0.00046575,120]
[356238714,1742122248458,-500.0,0.00046575,120]
[356238715,1742122248468,-607.57,0.00046575,120]
[356238716,1742122248479,-500.0,0.00046575,120]
[356238717,1742122248489,-500.0,0.00046575,120]
[356238718,1742122248499,-607.98,0.00046575,120]
[356238719,1742122248509,-500.0,0.00046575,120]
[356238720,1742122248519,-500.0,0.00046575,120]
[356238721,1742122248528,-500.0,0.00046575,120]
[356238722,1742122248538,-500.0,0.00046575,120]
[356238723,1742122248547,-500.0,0.00046575,120]
[356238724,1742122248557,-500.0,0.00046575,120]
[356238725,1742122248567,-500.0,0.00046575,120]
[356238726,1742122248577,-500.0,0.00046575,120]
[356238727,1742122248586,-500.0,0.00046575,120]
[356238728,1742122248596,-500.0,0.00046575,120]
[356238729,1742122248605,-500.0,0.00046575,120]
[356238730,1742122248615,-500.02296891,0.00046575,120]
[356238731,1742122248625,-500.0,0.00046575,120]
[356238732,1742122248634,-500.0,0.00046575,120]
[356238733,1742122248644,-271.46,0.00046575,120]
[356238734,1742122248653,-500.0,0.00046575,120]
[356238735,1742122248662,-608.45,0.00046575,120]
[356238736,1742122248671,-500.0,0.00046575,120]
[356238737,1742122248681,-606.76,0.00046575,120]
[356238738,1742122248690,-500.0,0.00046575,120]
[356238739,1742122248701,-150.81,0.00046575,120]
[356238740,1742122248710,-500.0,0.00046575,120]
[356238741,1742122248719,-158.6221487,0.00046575,120]
[356238742,1742122248729,-500.0,0.00046575,120]
[356238743,1742122248739,-505.57,0.00046575,120]
[356238744,1742122248748,-500.0,0.00046575,120]
[356238745,1742122248758,-500.0,0.00046575,120]
[356238746,1742122248767,-567.18,0.00046575,120]
[356238747,1742122248776,-500.0,0.00046575,120]
[356238748,1742122248785,-500.0,0.00046575,120]
[356238749,1742122248795,-500.0,0.00046575,120]
[356238750,1742122248804,-197.39,0.00046575,120]
[356238751,1742122248813,-532.87,0.00046575,120]
[356238752,1742122248823,-539.91,0.00046575,120]
[356238753,1742122248832,-500.0,0.00046575,120]
[356238754,1742122248842,-500.0,0.00046575,120]
[356238755,1742122248852,-500.0,0.00046575,120]
[356238756,1742122248862,-500.0,0.00046575,120]
[356238757,1742122248871,-500.0,0.00046575,120]
[356238758,1742122248881,-500.0,0.00046575,120]
[356238759,1742122248891,-500.0,0.00046575,120]
[356238760,1742122248900,-243.89,0.00046575,120]
[356238761,1742122248910,-500.0,0.00046575,120]
[356238762,1742122248920,-500.0,0.00046575,120]
[356238763,1742122248930,-500.0,0.00046575,120]
[356238764,1742122248939,-500.0,0.00046575,120]
[356238765,1742122248949,-500.0,0.00046575,120]
[356238766,1742122248958,-500.0,0.00046575,120]
[356238767,1742122248967,-500.0,0.00046575,120]
[356238768,1742122248976,-500.0,0.00046575,120]
[356238769,1742122248986,-500.0,0.00046575,120]
[356238770,1742122248995,-500.0,0.00046575,120]
[356238771,1742122249004,-500.0,0.00046575,120]
[356238772,1742122249014,-500.0,0.00046575,120]
[356238773,1742122249023,-500.0,0.00046575,7]
[356238774,1742122249032,-500.0,0.00046575,7]
[356238775,1742122249041,-500.0,0.00046575,120]
[356238776,1742122249050,-574.18,0.00046575,120]
[356238777,1742122249059,-500.0,0.00046575,120]
[356238778,1742122249068,-512.78,0.00046575,120]
[356238779,1742122249077,-500.0,0.00046575,120]
[356238780,1742122249085,-500.0,0.00046575,120]
[356238781,1742122249094,-526.40273717,0.00046575,120]
[356238782,1742122249103,-500.0,0.00046575,120]
[356238783,1742122249113,-500.0,0.00046575,120]
[356238784,1742122249123,-559.09,0.00046575,120]
[356238785,1742122249132,-349.88526413,0.00046575,120]
[356238786,1742122249142,-557.42,0.00046575,120]
[356238787,1742122249151,-500.0,0.00046575,120]
[356238788,1742122249161,-500.0,0.00046575,120]
[356238789,1742122249171,-159.6,0.00046575,120]
[356238790,1742122249180,-500.0,0.00046575,120]
[356238791,1742122249189,-500.0,0.00046575,120]
[356238792,1742122249201,-500.0,0.00046575,120]
[356238793,1742122249211,-500.0,0.00046575,120]
[356238794,1742122249221,-500.0,0.00046575,120]
[356238795,1742122249231,-500.0,0.00046575,120]
[356238796,1742122249241,-500.0,0.00046575,120]
[356238797,1742122249251,-500.0,0.00046575,120]
[356238798,1742122249261,-500.0,0.00046575,120]
[356238799,1742122249271,-500.0,0.00046575,120]
[356238800,1742122249281,-522.34,0.00046575,120]
[356238801,1742122249291,-500.0,0.00046575,120]
[356238802,1742122249301,-500.0,0.00046575,120]
[356238803,1742122249311,-500.0,0.00046575,120]
[356238804,1742122249321,-438.83,0.00046575,120]
[356238805,1742122249331,-206.52,0.00046575,120]
[356238806,1742122249342,-500.0,0.00046575,120]
[356238807,1742122249352,-500.0,0.00046575,120]
[356238808,1742122249362,-500.0,0.00046575,120]
[356238809,1742122249371,-615.85,0.00046575,120]
[356238810,1742122249382,-500.0,0.00046575,120]
[356238811,1742122249392,-500.0,0.00046575,120]
[356238812,1742122249402,-500.0,0.00046575,120]
[356238813,1742122249412,-500.0,0.00046575,120]
[356238814,1742122249421,-261.29,0.00046575,120]
[356238815,1742122249432,-500.0,0.00046575,120]
[356238816,1742122249442,-500.0,0.00046575,120]
[356238817,1742122249453,-500.0,0.00046575,120]
[356238818,1742122249464,-500.0,0.00046575,120]
[356238819,1742122249476,-160.72,0.00046575,120]
[356238820,1742122249488,-500.0,0.00046575,120]
[356238821,1742122249498,-500.0,0.00046575,120]
[356238822,1742122249508,-500.0,0.00046575,120]
[356238823,1742122249519,-500.0,0.00046575,120]
[356238824,1742122249529,-508.68,0.00046575,120]
[356238825,1742122249539,-500.0,0.00046575,120]
[356238826,1742122249548,-500.0,0.00046575,120]
[356238827,1742122249560,-500.0,0.00046575,120]
[356238828,1742122249570,-500.0,0.00046575,120]
[356238829,1742122249580,-500.0,0.00046575,120]
[356238830,1742122249590,-229.09,0.00046575,120]
[356238831,1742122249600,-500.0,0.00046575,120]
[356238832,1742122249610,-500.0,0.00046575,120]
[356238833,1742122249619,-550.81,0.00046575,120]
[356238834,1742122249629,-500.0,0.00046575,120]
[356238835,1742122249639,-500.0,0.00046575,120]
[356238836,1742122249649,-500.0,0.00046575,120]
[356238837,1742122249659,-500.0,0.00046575,120]
[356238838,1742122249669,-500.0,0.00046575,120]
[356238839,1742122249679,-553.96,0.00046575,120]
[356238840,1742122249689,-500.0,0.00046575,120]
[356238841,1742122249700,-500.0,0.00046575,120]
[356238842,1742122249710,-500.0,0.00046575,120]
[356238843,1742122249720,-253.45,0.00046575,120]
[356238844,1742122249730,-603.43,0.00046575,2]
[356238845,1742122249740,-603.43,0.00046575,2]
[356238846,1742122249750,-500.0,0.00046575,120]
[356238847,1742122249760,-253.92,0.00046575,120]
[356238848,1742122249771,-500.0,0.00046575,120]
[356238849,1742122249781,-251.5,0.00046575,120]
[356238850,1742122249790,-500.0,0.00046575,100]
[356238851,1742122249800,-500.0,0.00046575,100]
[356238852,1742122249810,-549.87,0.00046575,120]
[356238853,1742122249820,-500.0,0.00046575,120]
[356238854,1742122249829,-500.0,0.00046575,120]
[356238855,1742122249839,-500.0,0.00046575,120]
[356238856,1742122249848,-582.12066468,0.00046575,120]
[356238857,1742122249857,-500.0,0.00046575,120]
[356238858,1742122249867,-500.0,0.00046575,120]
[356238859,1742122249877,-474.64,0.00046575,120]
[356238860,1742122249888,-500.0,0.00046575,120]
[356238861,1742122249898,-500.0,0.00046575,120]
[356238862,1742122249908,-500.0,0.00046575,120]
[356238863,1742122249918,-500.0,0.00046575,120]
[356238864,1742122249927,-500.0,0.00046575,120]
[356238865,1742122249937,-452.36,0.00046575,120]
[356238866,1742122249948,-500.0,0.00046575,120]
[356238867,1742122249957,-500.0,0.00046575,120]
[356238868,1742122249967,-353.98,0.00046575,120]
[356238869,1742122249977,-500.0,0.00046575,120]
[356238870,1742122249987,-500.0,0.00046575,120]
[356238871,1742122249996,-500.0,0.00046575,120]
[356238872,1742122250006,-500.0,0.00046575,120]
[356238873,1742122250016,-500.0,0.00046575,120]
[356238874,1742122250026,-500.0,0.00046575,2]
[356238875,1742122250035,-500.0,0.00046575,2]
[356238876,1742122250045,-500.0,0.00046575,120]
[356238877,1742122250054,-500.0,0.00046575,120]
[356238878,1742122250065,-500.0,0.00046575,120]
[356238879,1742122250074,-500.0,0.00046575,120]
[356238880,1742122250084,-500.0,0.00046575,120]
[356238881,1742122250093,-500.0,0.00046575,120]
[356238882,1742122250103,-155.56,0.00046575,120]
[356238883,1742122250112,-546.12335872,0.00046575,120]
[356238884,1742122250122,-500.0,0.00046575,120]
[356238885,1742122250131,-500.0,0.00046575,120]
[356238886,1742122250141,-500.0,0.00046575,120]
[356238887,1742122250151,-500.0,0.00046575,120]
[356238888,1742122250162,-430.36,0.00046575,120]
[356238889,1742122250171,-500.0,0.00046575,120]
[356238890,1742122250181,-500.0,0.00046575,120]
[356238891,1742122250190,-500.0,0.00046575,120]
[356238892,1742122250200,-409.49,0.00046575,120]
[356238893,1742122250210,-500.0,0.00046575,120]
[356238894,1742122250219,-404.9,0.00046575,120]
[356238895,1742122250229,-500.0,0.00046575,120]
[356238896,1742122250360,-500.0,0.00046575,120]
[356238897,1742122250371,-500.0,0.00046575,120]
[356238898,1742122250381,-579.15,0.00046575,120]
[356238899,1742122250391,-500.0,0.00046575,120]
[356238900,1742122250400,-500.0,0.00046575,120]
[356238901,1742122250411,-6237.91,0.00046644,8]
[356238902,1742122250420,-211.17,0.00046644,8]
[356238903,1742122250429,-10145.28208409,0.00047,120]
[356238904,1742122250439,-1422.0,0.00047,7]
[356238905,1742122250448,-1320.78,0.00047382,2]
[356238906,1742122250458,-207.11548347,0.000474,11]
[356238907,1742122250468,-1009.0,0.000475,7]
[356238908,1742122250482,-507.70376814,0.00047989,120]
[356238909,1742122250491,-257.94,0.00047989,120]
[356238910,1742122250500,-448.44,0.00047989,120]
[356238911,1742122250510,-527.20204744,0.00047989,120]
[356238912,1742122250519,-500.0,0.00047989,120]
[356238913,1742122250528,-500.0,0.00047989,120]
[356238914,1742122250538,-500.0,0.00047989,120]
[356238915,1742122250547,-596.96,0.00047989,120]
[356238916,1742122250557,-435.16,0.00047989,120]
[356238917,1742122250566,-330.53,0.00047989,120]
[356238918,1742122250576,-30027.6200792,0.0004799,4]
[356238919,1742122250585,-6005.52401583,0.0004799,4]
[356238920,1742122250595,-187.15,0.00047999,120]
[356238921,1742122250605,-500.0,0.00047999,120]
[356238922,1742122250615,-275.18,0.00047999,120]
[356238923,1742122250624,-500.0,0.00047999,120]
[356238924,1742122250633,-241.6140526,0.00047999,120]
[356238925,1742122253744,-407.82269628,0.00046575,120]
[356238930,1742122962119,-150.0,0.00019,2]
[356238933,1742123089622,-100.0,0.00019,2]
[356238935,1742123144374,-312.60029178,0.00042277,2]
[356238936,1742123144402,-500.0,0.00042277,2]
[356238937,1742123144428,-297.55,0.00042277,2]
[356238938,1742123144454,-3688.78,0.00042516,2]
[356238939,1742123157456,-736.77867947,0.000458,2]
[356238940,1742123157492,-176.1782239,0.0004596,4]
[356238941,1742123157524,-491.0,0.00046164,2]
[356238942,1742123157553,-263.1869,0.00046375,2]
[356238943,1742123157581,-465.53350998,0.00046565,2]
[356238944,1742123157612,-285.541,0.00046574,77]
[356238945,1742123157640,-3139.307,0.00046574,77]
[356238946,1742123157669,-150.0,0.00046574,4]
[356238947,1742123157698,-500.0,0.00046575,120]
[356238948,1742123157729,-500.0,0.00046575,120]
[356238949,1742123157758,-635.32,0.00046575,120]
[356238950,1742123157784,-500.0,0.00046575,120]
[356238951,1742123157811,-500.0,0.00046575,120]
[356238952,1742123157847,-439.93390713,0.00046575,120]
[356238953,1742123157876,-500.0,0.00046575,120]
[356238954,1742123157907,-566.16,0.00046575,120]
[356238955,1742123157937,-500.0,0.00046575,120]
[356238956,1742123157969,-500.0,0.00046575,120]
[356238957,1742123157998,-500.0,0.00046575,120]
[356238958,1742123158029,-500.0,0.00046575,120]
[356238959,1742123158060,-500.0,0.00046575,120]
[356238960,1742123158090,-500.0,0.00046575,120]
[356238961,1742123158121,-500.0,0.00046575,120]
[356238962,1742123158149,-500.0,0.00046575,120]
[356238963,1742123158179,-500.0,0.00046575,120]
[356238964,1742123158207,-452.10856984,0.00046575,120]
[356238965,1742123158235,-500.0,0.00046575,120]
[356238966,1742123158264,-500.0,0.00046575,120]
[356238967,1742123158294,-500.0,0.00046575,120]
[356238968,1742123158328,-613.17276534,0.00046575,120]
[356238969,1742123158359,-500.0,0.00046575,120]
[356238970,1742123158394,-500.0,0.00046575,120]
[356238971,1742123158423,-500.0,0.00046575,120]
[356238972,1742123158449,-500.0,0.00046575,120]
[356238973,1742123158477,-500.0,0.00046575,120]
[356238974,1742123158507,-500.0,0.00046575,120]
[356238975,1742123158539,-500.0,0.00046575,120]
[356238976,1742123158565,-455.85662008,0.00046575,120]
[356238977,1742123158592,-536.37,0.00046575,120]
[356238978,1742123158618,-503.55648251,0.00046575,120]
[356238979,1742123158646,-500.0,0.00046575,120]
[356238980,1742123158674,-500.0,0.00046575,120]
[356238981,1742123158704,-500.0,0.00046575,120]
[356238982,1742123158729,-591.92,0.00046575,120]
[356238983,1742123158754,-500.0,0.00046575,120]
[356238984,1742123158777,-500.0,0.00046575,120]
[356238985,1742123158804,-500.0,0.00046575,120]
[356238986,1742123158835,-500.0,0.00046575,120]
[356238987,1742123158865,-500.0,0.00046575,120]
[356238988,1742123158894,-500.0,0.00046575,120]
[356238989,1742123158920,-500.0,0.00046575,120]
[356238990,1742123158961,-500.0,0.00046575,120]
[356238991,1742123158998,-500.0,0.00046575,120]
[356238992,1742123159029,-500.0,0.00046575,120]
[356238993,1742123159060,-500.0,0.00046575,120]
[356238994,1742123159090,-381.82200403,0.00046575,120]
[356238995,1742123159124,-278.96,0.00046575,120]
[356238996,1742123159154,-487.05,0.00046575,120]
[356238997,1742123159183,-603.98,0.00046575,120]
[356238998,1742123159213,-500.0,0.00046575,120]
[356238999,1742123159241,-211.56,0.00046575,120]
[356239000,1742123159271,-206.21,0.00046575,120]
[356239001,1742123159299,-500.0,0.00046575,7]
[356239002,1742123159332,-500.0,0.00046575,7]
[356239003,1742123159362,-248.52,0.00046575,120]
[356239004,1742123159397,-217.97,0.00046575,120]
[356239005,1742123159429,-518.45,0.00046575,120]
[356239006,1742123159462,-500.0,0.00046575,120]
[356239007,1742123159495,-500.0,0.00046575,120]
[356239008,1742123159520,-500.0,0.00046575,120]
[356239009,1742123159544,-500.0,0.00046575,120]
[356239010,1742123159569,-500.0,0.00046575,120]
[356239011,1742123159594,-500.0,0.00046575,120]
[356239012,1742123159619,-169.82,0.00046575,120]
[356239013,1742123159644,-500.0,0.00046575,120]
[356239014,1742123159668,-500.0,0.00046575,120]
[356239015,1742123159692,-1852.42,0.00046664,120]
[356239016,1742123159716,-250.0,0.00046664,120]
[356239017,1742123159740,-2000.0,0.00046706,120]
[356239018,1742123159764,-300.0,0.00046717,2]
[356239019,1742123159788,-2000.0,0.00046789,120]
[356239020,1742123159815,-5271.31433772,0.0004679,2]
[356239023,1742123359371,1173.03,0.0004487,2]
[356239054,1742123431711,-335.40571595,0.00045907,2]
[356239055,1742123431893,-310.36,0.00045907,2]
[356239056,1742123431910,-296.03200141,0.00045907,2]
[356239057,1742123431922,-420.7394915,0.00045907,2]
[356239058,1742123431935,-449.32685517,0.00045907,2]
[356239059,1742123431947,-56.34580905,0.00045907,2]
[356239060,1742123431958,-176.1782239,0.0004596,4]
[356239061,1742123431970,-67.46596705,0.000462,120]
[356239062,1742123431982,-371.50527734,0.000462,120]
[356239063,1742123431992,-165.72,0.00046779,2]
[356239064,1742123432003,-9.97737791,0.0004679,2]
[356239065,1742123432014,-18618.70828437,0.0004679,2]
[356239066,1742123432026,-200.0,0.00046842,2]
[356239068,1742123432039,-500.0,0.00046847,2]
[356239070,1742123432050,-155.89,0.00046848,2]
[356239072,1742123432060,-159.22,0.00046891,120]
[356239074,1742123432071,-214.61307174,0.000469,10]
[356239076,1742123432081,-1000.0,0.00046914,2]
[356239077,1742123432091,-169.29,0.00046923,2]
[356239079,1742123432100,-167.22,0.0004695,2]
[356239081,1742123432111,-200.0,0.00046967,2]
[356239082,1742123432121,-1173.03,0.00047134,2]
[356239083,1742123432131,-155.89,0.00047238,2]
[356239084,1742123432141,-183.89,0.00047532,2]
[356239085,1742123432151,-51120.25646719,0.000476,120]
[356239086,1742123432161,-155.89,0.00047629,2]
[356239087,1742123432171,-150.0,0.00047717,7]
[356239088,1742123432181,-150.0,0.00047718,7]
[356239089,1742123432194,-150.0,0.00047718,7]
[356239091,1742123432204,-150.0,0.00047718,7]
[356239092,1742123432215,-150.0,0.0004772,7]
[356239093,1742123432225,-150.0,0.00047725,7]
[356239094,1742123432235,-150.0,0.00047728,7]
[356239095,1742123432245,-150.0,0.00047729,7]
[356239096,1742123432254,-235.01526393,0.00047732,2]
[356239097,1742123432263,-150.0,0.00047734,7]
[356239098,1742123432273,-150.0,0.00047739,7]
[356239099,1742123432282,-150.0,0.00047742,7]
[356239100,1742123432291,-150.0,0.00047747,7]
[356239101,1742123432301,-150.0,0.00047766,7]
[356239102,1742123432311,-150.0,0.00047767,7]
[356239103,1742123432321,-150.0,0.00047772,7]
[356239104,1742123432331,-150.0,0.00047788,7]
[356239105,1742123432340,-150.0,0.00047789,7]
[356239106,1742123432350,-150.0,0.0004779,7]
[356239107,1742123432360,-150.0,0.00047791,7]
[356239108,1742123432370,-150.0,0.00047792,7]
[356239109,1742123432381,-150.0,0.00047795,7]
[356239110,1742123432390,-150.0,0.00047796,7]
[356239111,1742123432400,-150.0,0.00047799,7]
[356239112,1742123432410,-150.0,0.000478,7]
[356239113,1742123432420,-150.0,0.000478,7]
[356239114,1742123432430,-205.4774391,0.000478,7]
[356239115,1742123432440,-223.2344,0.000478,2]
[356239116,1742123432450,-1393.6125,0.000478,2]
[356239117,1742123432460,-1162.7386,0.000478,2]
[356239118,1742123432471,-2051.2974,0.000478,2]
[356239119,1742123432481,-150.0,0.0004781,7]
[356239120,1742123432491,-150.0,0.00047813,7]
[356239121,1742123432500,-150.0,0.00047817,7]
[356239122,1742123432510,-150.0,0.0004782,7]
[356239123,1742123432519,-150.0,0.00047829,7]
[356239124,1742123432529,-150.0,0.00047832,7]
[356239125,1742123432539,-150.0,0.0004784,7]
[356239126,1742123432549,-150.0,0.00047841,7]
[356239127,1742123432558,-150.0,0.00047841,7]
[356239128,1742123432567,-150.0,0.00047847,7]
[356239129,1742123432577,-150.0,0.00047849,7]
[356239130,1742123432586,-150.0,0.00047849,7]
[356239131,1742123432595,-150.0,0.00047853,7]
[356239132,1742123432605,-150.0,0.00047855,7]
[356239133,1742123432614,-150.0,0.00047855,7]
[356239134,1742123432624,-150.0,0.00047858,7]
[356239135,1742123432633,-150.0,0.00047878,7]
[356239136,1742123432642,-150.0,0.00047879,7]
[356239137,1742123432652,-150.0,0.00047881,7]
[356239138,1742123432662,-150.0,0.00047882,7]
[356239139,1742123432672,-150.0,0.00047892,7]
[356239140,1742123432681,-150.0,0.00047894,7]
[356239141,1742123432691,-150.0,0.00047896,7]
[356239142,1742123432701,-150.0,0.00047897,7]
[356239143,1742123432711,-207.74412583,0.00047899,7]
[356239144,1742123432722,-623.1032,0.000479,2]
[356239145,1742123432732,-1229.6717,0.000479,2]
[356239146,1742123432742,-19738.18350421,0.000479,120]
[356239147,1742123432752,-150.0,0.00047905,7]
[356239148,1742123432762,-150.0,0.00047918,7]
[356239149,1742123432772,-150.0,0.00047927,7]
[356239150,1742123432781,-150.0,0.00047929,7]
[356239151,1742123432791,-150.0,0.0004793,7]
[356239152,1742123432800,-150.0,0.00047931,7]
[356239153,1742123432809,-150.0,0.00047934,7]
[356239154,1742123432818,-150.0,0.00047938,7]
[356239155,1742123432827,-150.0,0.00047939,7]
[356239156,1742123432837,-150.0,0.00047944,7]
[356239157,1742123432846,-150.0,0.00047944,7]
[356239158,1742123432855,-150.0,0.00047948,7]
[356239159,1742123432864,-150.0,0.00047951,7]
[356239160,1742123432872,-150.0,0.00047953,7]
[356239161,1742123432881,-150.0,0.00047959,7]
[356239162,1742123432890,-150.0,0.00047959,7]
[356239163,1742123432899,-150.0,0.0004796,7]
[356239164,1742123432908,-150.0,0.00047972,7]
[356239165,1742123432917,-150.0,0.00047972,7]
[356239166,1742123432926,-150.0,0.00047973,7]
[356239167,1742123432934,-150.0,0.00047976,7]
[356239168,1742123432944,-150.0,0.00047981,7]
[356239169,1742123432953,-1000.0,0.00047988,120]
[356239170,1742123432963,-100000.0,0.00048,21]
[356239171,1742123432974,-10000.0,0.00048,30]
[356239172,1742123432984,-155.89,0.00048019,2]
[356239173,1742123432994,-500.0,0.00048162,120]
[356239174,1742123433004,-1145.23,0.00048163,120]
[356239175,1742123433014,-500.0,0.00048298,10]
[356239176,1742123433027,-1000.0,0.000483,120]
[356239177,1742123433038,-1000.0,0.0004838,2]
[356239178,1742123433048,-2500.0,0.0004838,2]
[356239179,1742123433058,-155.89,0.0004841,2]
[356239180,1742123433069,-1493.77,0.00048469,120]
[356239181,1742123433079,-500.0,0.00048478,120]
[356239182,1742123433089,-162.68,0.00048478,120]
[356239183,1742123433100,-500.0,0.00048478,120]
[356239184,1742123433110,-500.0,0.00048478,120]
[356239185,1742123433120,-500.0,0.00048478,100]
[356239186,1742123433130,-217.97,0.00048478,120]
[356239187,1742123433139,-500.0,0.00048478,120]
[356239188,1742123433149,-74.58839758,0.00048478,2]
[356239189,1742123433167,-425.41160242,0.00048478,2]
[356239190,1742123433178,-500.0,0.00048478,120]
[356239191,1742123433188,-188.05244979,0.00048479,120]
[356239192,1742123433198,-500.0,0.00048479,120]
[356239193,1742123433206,-71.66013822,0.00048479,120]
[356239194,1742123433219,-428.33986178,0.00048479,120]
[356239195,1742123433228,-344.17,0.00048479,120]
[356239196,1742123433237,-64.73325638,0.00048479,120]
[356239197,1742123433252,-366.48101014,0.00048479,120]
[356239209,1742123437573,-546.24,0.00047153,2]
[356239210,1742123437584,-68.78573348,0.00048479,120]
[356239211,1742123437594,-500.0,0.00048479,120]
[356239212,1742123437605,-511.13730372,0.00048479,120]
[356239213,1742123437615,-500.0,0.00048479,120]
[356239214,1742123437625,-190.98,0.00048479,120]
[356239215,1742123437635,-82.8569628,0.00048479,120]
[356239216,1742123437647,-138.5230372,0.00048479,120]
[356239217,1742123437657,-500.0,0.00048479,120]
[356239218,1742123437667,-500.0,0.00048479,120]
[356239219,1742123437676,-500.0,0.00048479,120]
[356239220,1742123437686,-500.0,0.00048479,120]
[356239221,1742123437696,-500.0,0.00048479,120]
[356239222,1742123437706,-500.0,0.00048479,120]
[356239223,1742123437715,-500.0,0.00048479,120]
[356239224,1742123437729,-500.0,0.00048479,120]
[356239225,1742123437739,-500.0,0.00048479,120]
[356239226,1742123437748,-221.97,0.00048479,120]
[356239227,1742123437758,-188.54,0.00048479,120]
[356239228,1742123437768,-160.09,0.00048479,120]
[356239229,1742123437777,-236.88,0.00048479,120]
[356239230,1742123437788,-500.0,0.00048479,120]
[356239231,1742123437798,-275.37684135,0.00048479,120]
[356239232,1742123437807,-500.0,0.00048479,120]
[356239233,1742123437817,-500.0,0.00048479,120]
[356239234,1742123437827,-280.12649052,0.00048479,120]
[356239235,1742123437837,-276.36,0.00048479,120]
[356239236,1742123437846,-218.08,0.00048479,120]
[356239237,1742123437857,-376.6701851,0.00048479,7]
[356239238,1742123437869,-142.64395826,0.00048479,7]
[356239239,1742123437879,-305.93,0.00048479,120]
[356239240,1742123437889,-581.48,0.00048479,120]
[356239241,1742123437899,-500.0,0.00048479,120]
[356239243,1742123437909,-500.0,0.00048479,120]
[356239244,1742123437920,-231.21,0.00048479,120]
[356239245,1742123437929,-612.76,0.00048479,120]